[Event "Open Nuevo Centro. Jornada 2"]
[Site "Chess.com"]
[Date "2020.06.26"]
[Round "3"]
[White "Pardo Ruiz, Carlos"]
[Black "Segarra Martinez, Axel"]
[Result "0-1"]
[WhiteElo "1838"]
[BlackElo "2175"]
[TimeControl "180+2"]
[EndTime "11:00:28 PDT"]
[Termination "Victoria de Alejandrosky por jaque mate"]

1. e4 {[%clk 0:02:57.1]} 1... e6 {[%clk 0:02:56.7]} 2. d4 {[%clk 0:02:57.5]}
2... d5 {[%clk 0:02:56.6]} 3. exd5 {[%clk 0:02:59.4]} 3... exd5 {[%clk
0:02:56.5]} 4. Nf3 {[%clk 0:03:00.9]} 4... Bd6 {[%clk 0:02:57]} 5. c4 {[%clk
0:03:00.9]} 5... dxc4 {[%clk 0:02:54]} 6. Bxc4 {[%clk 0:03:02.8]} 6... Nf6
{[%clk 0:02:54.6]} 7. O-O {[%clk 0:03:03.2]} 7... O-O {[%clk 0:02:55.3]} 8. h3
{[%clk 0:03:02.6]} 8... Bf5 {[%clk 0:02:55.9]} 9. Nc3 {[%clk 0:03:02]} 9... Nbd7
{[%clk 0:02:56.2]} 10. Bg5 {[%clk 0:02:56]} 10... h6 {[%clk 0:02:56]} 11. Bh4
{[%clk 0:02:51.4]} 11... Nb6 {[%clk 0:02:56.6]} 12. Bb3 {[%clk 0:02:49.6]} 12...
c6 {[%clk 0:02:56.8]} 13. Re1 {[%clk 0:02:49.5]} 13... a5 {[%clk 0:02:53.3]} 14.
a3 {[%clk 0:02:49.7]} 14... g5 {[%clk 0:02:29.8]} 15. Bg3 {[%clk 0:02:46.5]}
15... Bxg3 {[%clk 0:02:31]} 16. fxg3 {[%clk 0:02:48.4]} 16... Qd6 {[%clk
0:02:31.8]} 17. Ne5 {[%clk 0:02:38.2]} 17... Rad8 {[%clk 0:02:21.9]} 18. Ne2
{[%clk 0:02:22.6]} 18... Be6 {[%clk 0:02:14.3]} 19. Bxe6 {[%clk 0:02:20.1]}
19... Qxe6 {[%clk 0:02:15.8]} 20. Nc3 {[%clk 0:02:16.2]} 20... Rfe8 {[%clk
0:02:10.8]} 21. Nf3 {[%clk 0:02:08.9]} 21... Qd6 {[%clk 0:02:06.2]} 22. Rxe8+
{[%clk 0:02:07.7]} 22... Rxe8 {[%clk 0:02:08.1]} 23. Kf2 {[%clk 0:02:05.8]}
23... Nbd5 {[%clk 0:02:05.2]} 24. Nxd5 {[%clk 0:02:04.7]} 24... Ne4+ {[%clk
0:02:06.1]} 25. Kg1 {[%clk 0:02:01.7]} 25... Qxd5 {[%clk 0:02:03.8]} 26. Kh2
{[%clk 0:01:56.4]} 26... Rd8 {[%clk 0:01:56]} 27. Qc2 {[%clk 0:01:43.9]} 27...
f5 {[%clk 0:01:53.4]} 28. Rd1 {[%clk 0:01:40.8]} 28... c5 {[%clk 0:01:47.7]} 29.
Nd2 {[%clk 0:01:31.6]} 29... Qxd4 {[%clk 0:01:41.8]} 30. Qb3+ {[%clk 0:01:21.7]}
30... Qd5 {[%clk 0:01:39.3]} 31. Qxd5+ {[%clk 0:01:19.3]} 31... Rxd5 {[%clk
0:01:39.5]} 32. Nxe4 {[%clk 0:01:18.6]} 32... Rxd1 {[%clk 0:01:40]} 33. Nxc5
{[%clk 0:01:17.6]} 33... b6 {[%clk 0:01:38.3]} 34. Na4 {[%clk 0:01:17.6]} 34...
Rd6 {[%clk 0:01:24.8]} 35. h4 {[%clk 0:01:17.2]} 35... Kf7 {[%clk 0:01:25.5]}
36. Kg1 {[%clk 0:01:16]} 36... Ke6 {[%clk 0:01:20.3]} 37. Kf2 {[%clk 0:01:15.4]}
37... b5 {[%clk 0:01:21.4]} 38. Nc3 {[%clk 0:01:14.6]} 38... b4 {[%clk
0:01:22.7]} 39. axb4 {[%clk 0:01:13.1]} 39... axb4 {[%clk 0:01:24.6]} 40. Nb5
{[%clk 0:01:04.6]} 40... Rd2+ {[%clk 0:01:25]} 41. Kf3 {[%clk 0:01:05]} 41...
Rxb2 {[%clk 0:01:26.9]} 42. hxg5 {[%clk 0:01:05.1]} 42... hxg5 {[%clk 0:01:27]}
43. g4 {[%clk 0:01:06.5]} 43... f4 {[%clk 0:01:15.4]} 44. g3 {[%clk 0:01:04.7]}
44... Rb3+ {[%clk 0:01:15.8]} 45. Kf2 {[%clk 0:01:02.5]} 45... Rxg3 {[%clk
0:01:16.7]} 46. Ke2 {[%clk 0:00:59.6]} 46... Rxg4 {[%clk 0:01:14.8]} 47. Kf3
{[%clk 0:00:59]} 47... Rg3+ {[%clk 0:01:15.4]} 48. Kf2 {[%clk 0:01:00]} 48... b3
{[%clk 0:01:14.1]} 49. Nd4+ {[%clk 0:01:00.8]} 49... Kd5 {[%clk 0:01:14.8]} 50.
Nxb3 {[%clk 0:01:01.7]} 50... Rxb3 {[%clk 0:01:14.9]} 51. Kg2 {[%clk 0:01:03.2]}
51... g4 {[%clk 0:01:15.9]} 52. Kf2 {[%clk 0:01:04.4]} 52... Rb2+ {[%clk
0:01:17.8]} 53. Kf1 {[%clk 0:01:05]} 53... f3 {[%clk 0:01:19.7]} 54. Ke1 {[%clk
0:01:04.9]} 54... g3 {[%clk 0:01:21.6]} 55. Kf1 {[%clk 0:01:05]} 55... Rb1#
{[%clk 0:01:22.5]} 0

[Event "Open Nuevo Centro. Jornada 2"]
[Site "Chess.com"]
[Date "2020.06.26"]
[Round "3"]
[White "Zamora Soler, Raul"]
[Black "Álvarez Aranda, Jesús"]
[Result "1-0"]
[WhiteElo "1770"]
[BlackElo "1343"]
[TimeControl "180+2"]
[EndTime "11:00:32 PDT"]
[Termination "Victoria de rzamora80 por abandono"]

1. e4 {[%clk 0:03:01.9]} 1... e5 {[%clk 0:02:59.1]} 2. Nf3 {[%clk 0:03:02.4]}
2... Nc6 {[%clk 0:02:56]} 3. d4 {[%clk 0:03:02.9]} 3... exd4 {[%clk 0:02:54.4]}
4. Nxd4 {[%clk 0:03:03.8]} 4... Nxd4 {[%clk 0:02:55.7]} 5. Qxd4 {[%clk
0:03:04.2]} 5... Qf6 {[%clk 0:02:56]} 6. Be3 {[%clk 0:02:48.2]} 6... Qxd4 {[%clk
0:02:55.2]} 7. Bxd4 {[%clk 0:02:48.8]} 7... f6 {[%clk 0:02:56.1]} 8. Bc4 {[%clk
0:02:47.4]} 8... Ne7 {[%clk 0:02:54]} 9. O-O {[%clk 0:02:47]} 9... Nc6 {[%clk
0:02:54]} 10. Bc3 {[%clk 0:02:46.9]} 10... Bb4 {[%clk 0:02:50]} 11. a3 {[%clk
0:02:43]} 11... Bxc3 {[%clk 0:02:50.1]} 12. Nxc3 {[%clk 0:02:43.8]} 12... Ne5
{[%clk 0:02:50.2]} 13. Be2 {[%clk 0:02:40.7]} 13... O-O {[%clk 0:02:48.3]} 14.
f4 {[%clk 0:02:40.2]} 14... Nc6 {[%clk 0:02:45.7]} 15. Nd5 {[%clk 0:02:41]}
15... Nd4 {[%clk 0:02:34.3]} 16. Bc4 {[%clk 0:02:40.8]} 16... c6 {[%clk
0:02:31.5]} 17. Nc7+ {[%clk 0:02:36.3]} 17... d5 {[%clk 0:02:31.4]} 18. exd5
{[%clk 0:02:34.9]} 18... Rb8 {[%clk 0:02:24.9]} 19. dxc6+ {[%clk 0:02:34.9]}
19... Kh8 {[%clk 0:02:23.6]} 20. c3 {[%clk 0:02:32.8]} 20... Nxc6 {[%clk
0:02:22.4]} 21. Ne6 {[%clk 0:02:21.2]} 21... Bxe6 {[%clk 0:02:17.3]} 22. Bxe6
{[%clk 0:02:21.7]} 22... Rbd8 {[%clk 0:02:05.8]} 23. Rad1 {[%clk 0:02:18.4]}
23... Ne7 {[%clk 0:02:05.6]} 24. g3 {[%clk 0:02:14.7]} 24... Nc8 {[%clk
0:01:59.6]} 25. Kf2 {[%clk 0:02:07.3]} 25... Nd6 {[%clk 0:01:57]} 26. Kf3 {[%clk
0:02:02.2]} 26... Rfe8 {[%clk 0:01:40.2]} 27. f5 {[%clk 0:01:51.7]} 27... Nc8
{[%clk 0:01:27.8]} 28. Rxd8 {[%clk 0:01:50.8]} 28... Rxd8 {[%clk 0:01:28]} 29.
Bxc8 {[%clk 0:01:51.4]} 29... Rxc8 {[%clk 0:01:28.7]} 30. Rd1 {[%clk 0:01:52.1]}
30... h6 {[%clk 0:01:21.1]} 31. Rd7 {[%clk 0:01:52.4]} 31... Rb8 {[%clk
0:01:20.7]} 32. c4 {[%clk 0:01:52.1]} 32... a6 {[%clk 0:01:18]} 33. b4 {[%clk
0:01:52.3]} 33... h5 {[%clk 0:01:18]} 34. c5 {[%clk 0:01:48.2]} 34... Kh7 {[%clk
0:01:18.3]} 35. h3 {[%clk 0:01:46.3]} 35... Kh6 {[%clk 0:01:17.2]} 36. Kf4
{[%clk 0:01:38.2]} 36... g6 {[%clk 0:01:11.5]} 37. fxg6 {[%clk 0:01:39]} 37...
Kxg6 {[%clk 0:01:12.1]} 38. Rd6 {[%clk 0:01:40]} 38... Rc8 {[%clk 0:00:56.9]}
39. g4 {[%clk 0:01:33.7]} 39... hxg4 {[%clk 0:00:56.2]} 40. hxg4 {[%clk
0:01:34.4]} 40... Rc7 {[%clk 0:00:52.1]} 41. g5 {[%clk 0:01:34.5]} 41... Rf7
{[%clk 0:00:49.1]} 42. gxf6 {[%clk 0:01:34.7]} 42... Rxf6+ {[%clk 0:00:49.4]}
43. Ke5 {[%clk 0:01:35.9]} 43... Rxd6 {[%clk 0:00:37.5]} 44. Kxd6 {[%clk
0:01:36.7]} 44... Kf7 {[%clk 0:00:35.6]} 45. Kc7 {[%clk 0:01:37.5]} 45... b5
{[%clk 0:00:36.2]} 46. cxb6 {[%clk 0:01:38.2]} 46... Ke6 {[%clk 0:00:34.6]} 47.
b7 {[%clk 0:01:39]} 47... Kd5 {[%clk 0:00:35.3]} 48. b8=Q {[%clk 0:01:39.8]}
48... Kc4 {[%clk 0:00:36.2]} 49. Qb6 {[%clk 0:01:40.6]} 49... Kb3 {[%clk
0:00:35]} 50. Qxa6 {[%clk 0:01:41.5]} 50... Ka2 {[%clk 0:00:36.1]} 51. b5 {[%clk
0:01:42.5]} 1

[Event "Open Nuevo Centro. Jornada 2"]
[Site "Chess.com"]
[Date "2020.06.26"]
[Round "3"]
[White "Crevillen Abad, Clemente"]
[Black "Alvarez Usina, Jordi"]
[Result "1-0"]
[WhiteElo "1756"]
[BlackElo "1189"]
[TimeControl "180+2"]
[EndTime "11:00:42 PDT"]
[Termination "Victoria de Clementovich por tiempo"]

1. e4 {[%clk 0:03:01.9]} 1... e5 {[%clk 0:02:55.5]} 2. f4 {[%clk 0:03:02]} 2...
exf4 {[%clk 0:02:40.4]} 3. Nf3 {[%clk 0:03:02.3]} 3... Nf6 {[%clk 0:02:39.3]} 4.
e5 {[%clk 0:02:52.9]} 4... Qe7 {[%clk 0:02:38.2]} 5. Qe2 {[%clk 0:02:50.7]} 5...
Nd5 {[%clk 0:02:32.1]} 6. Nc3 {[%clk 0:02:47.7]} 6... Nxc3 {[%clk 0:02:31.1]} 7.
bxc3 {[%clk 0:02:43.9]} 7... d6 {[%clk 0:02:31.8]} 8. d4 {[%clk 0:02:40.9]} 8...
Nc6 {[%clk 0:02:29.5]} 9. Bxf4 {[%clk 0:02:39.4]} 9... f6 {[%clk 0:02:21.4]} 10.
exf6 {[%clk 0:02:35.7]} 10... Qxe2+ {[%clk 0:02:20.5]} 11. Bxe2 {[%clk
0:02:36.4]} 11... gxf6 {[%clk 0:02:21.2]} 12. O-O {[%clk 0:02:35.1]} 12... Bd7
{[%clk 0:02:19.4]} 13. a4 {[%clk 0:02:23.4]} 13... Rg8 {[%clk 0:02:17.5]} 14.
Rfe1 {[%clk 0:02:08.8]} 14... O-O-O {[%clk 0:02:16.4]} 15. a5 {[%clk 0:02:08]}
15... a6 {[%clk 0:02:13.6]} 16. Bc4 {[%clk 0:01:58.4]} 16... Rg7 {[%clk
0:02:09.2]} 17. g3 {[%clk 0:01:43.4]} 17... Be7 {[%clk 0:02:06.6]} 18. Be6
{[%clk 0:01:38.7]} 18... Bxe6 {[%clk 0:02:04.9]} 19. Rxe6 {[%clk 0:01:39]} 19...
Rdg8 {[%clk 0:02:03]} 20. Kf2 {[%clk 0:01:39]} 20... Kd7 {[%clk 0:01:54.7]} 21.
Rae1 {[%clk 0:01:35.4]} 21... Nd8 {[%clk 0:01:53.8]} 22. R6e2 {[%clk 0:01:30.9]}
22... f5 {[%clk 0:01:34.2]} 23. h4 {[%clk 0:01:18]} 23... Nc6 {[%clk 0:01:19.3]}
24. Ng5 {[%clk 0:01:17.2]} 24... Bxg5 {[%clk 0:00:59.1]} 25. Bxg5 {[%clk
0:01:16.9]} 25... h6 {[%clk 0:00:59.2]} 26. Bf4 {[%clk 0:01:13.9]} 26... b5
{[%clk 0:00:22]} 27. Re6 {[%clk 0:01:10.7]} 27... Nxa5 {[%clk 0:00:18.9]} 28.
Rxh6 {[%clk 0:01:10.6]} 28... Nc6 {[%clk 0:00:17.4]} 29. d5 {[%clk 0:01:05.3]}
29... Nd8 {[%clk 0:00:15.8]} 30. Bg5 {[%clk 0:01:02.2]} 30... Nf7 {[%clk
0:00:09.3]} 31. Rh5 {[%clk 0:00:33.4]} 31... Nxg5 {[%clk 0:00:05.9]} 32. hxg5
{[%clk 0:00:34.4]} 32... Rxg5 {[%clk 0:00:05.4]} 33. Rxg5 {[%clk 0:00:35.2]}
33... Rxg5 {[%clk 0:00:04.7]} 34. Ra1 {[%clk 0:00:36.2]} 1

[Event "Open Nuevo Centro. Jornada 2"]
[Site "Chess.com"]
[Date "2020.06.26"]
[Round "3"]
[White "Lopez Mateo, Juan Carlos"]
[Black "Campos Gambuti, Luis María"]
[Result "0-1"]
[WhiteElo "1991"]
[BlackElo "2416"]
[TimeControl "180+2"]
[EndTime "11:00:46 PDT"]
[Termination "Victoria de Tangalangafacv por abandono"]

1. e4 {[%clk 0:03:01.9]} 1... d5 {[%clk 0:02:53.5]} 2. Nf3 {[%clk 0:03:01]} 2...
dxe4 {[%clk 0:02:53.8]} 3. Ng5 {[%clk 0:03:02]} 3... Bf5 {[%clk 0:02:54.8]} 4.
Nc3 {[%clk 0:03:02.2]} 4... Nf6 {[%clk 0:02:55.5]} 5. Bc4 {[%clk 0:03:01.5]}
5... e6 {[%clk 0:02:55.7]} 6. f3 {[%clk 0:03:00.9]} 6... Bc5 {[%clk 0:02:55.7]}
7. fxe4 {[%clk 0:02:28.9]} 7... Bxe4 {[%clk 0:02:55.5]} 8. Ngxe4 {[%clk
0:02:24.7]} 8... Nxe4 {[%clk 0:02:56]} 9. Qh5 {[%clk 0:01:18.9]} 9... Qd4 {[%clk
0:02:43.8]} 10. Nxe4 {[%clk 0:01:14.3]} 10... Qxe4+ {[%clk 0:02:42]} 11. Qe2
{[%clk 0:01:13]} 11... Qxe2+ {[%clk 0:02:34.3]} 12. Bxe2 {[%clk 0:01:13.4]}
12... Nd7 {[%clk 0:02:35.4]} 13. d3 {[%clk 0:00:57.8]} 13... O-O {[%clk
0:02:30.3]} 14. Rf1 {[%clk 0:00:46.3]} 14... c6 {[%clk 0:02:27.5]} 15. Bd2
{[%clk 0:00:37.5]} 15... Nf6 {[%clk 0:02:14.7]} 16. O-O-O {[%clk 0:00:37.8]}
16... Nd5 {[%clk 0:02:15.8]} 17. Rf3 {[%clk 0:00:34.8]} 17... Bd6 {[%clk
0:02:10.7]} 18. c4 {[%clk 0:00:28.4]} 18... Ne7 {[%clk 0:01:59.5]} 19. d4 {[%clk
0:00:29.4]} 19... Ng6 {[%clk 0:01:52]} 20. g3 {[%clk 0:00:25.1]} 20... e5 {[%clk
0:01:47.5]} 21. dxe5 {[%clk 0:00:21.2]} 21... Bxe5 {[%clk 0:01:46.3]} 22. Bf1
{[%clk 0:00:14.1]} 22... c5 {[%clk 0:01:35.4]} 23. Rb3 {[%clk 0:00:13.5]} 23...
b6 {[%clk 0:01:35.1]} 24. Bg2 {[%clk 0:00:14.9]} 24... Rad8 {[%clk 0:01:35.7]}
25. Bd5 {[%clk 0:00:15.7]} 25... Ne7 {[%clk 0:01:34.8]} 26. Bf3 {[%clk
0:00:15.6]} 26... Rd7 {[%clk 0:01:27.9]} 27. Be3 {[%clk 0:00:11.4]} 27... Rxd1+
{[%clk 0:01:24.2]} 28. Kxd1 {[%clk 0:00:13]} 28... Rd8+ {[%clk 0:01:25.4]} 29.
Ke2 {[%clk 0:00:14.6]} 29... g6 {[%clk 0:01:21.6]} 30. Ra3 {[%clk 0:00:15.6]}
30... Rd7 {[%clk 0:01:22.1]} 31. Bg2 {[%clk 0:00:15.5]} 31... Bxb2 {[%clk
0:01:22.2]} 32. Rb3 {[%clk 0:00:14.6]} 32... Be5 {[%clk 0:01:18.4]} 33. Rb1
{[%clk 0:00:15.9]} 33... f5 {[%clk 0:01:19.1]} 34. Bg5 {[%clk 0:00:12.1]} 34...
Kf7 {[%clk 0:01:14.9]} 35. Bxe7 {[%clk 0:00:12.2]} 35... Kxe7 {[%clk 0:01:16.5]}
36. Bd5 {[%clk 0:00:12.6]} 36... Kf6 {[%clk 0:01:16.1]} 37. Kf3 {[%clk
0:00:13.6]} 37... Re7 {[%clk 0:01:17.5]} 38. Rb3 {[%clk 0:00:14]} 38... h5
{[%clk 0:01:17.4]} 39. Rd3 {[%clk 0:00:14.5]} 39... Bd4 {[%clk 0:01:18.3]} 40.
Ra3 {[%clk 0:00:14.4]} 40... g5 {[%clk 0:01:16.2]} 41. Rd3 {[%clk 0:00:12.2]}
41... g4+ {[%clk 0:01:09.3]} 42. Kg2 {[%clk 0:00:13.1]} 42... Re2+ {[%clk
0:01:09.6]} 0

[Event "Open Nuevo Centro. Jornada 2"]
[Site "Chess.com"]
[Date "2020.06.26"]
[Round "3"]
[White "Giaccio González, Alfredo Gustavo"]
[Black "Gimeno Higueras, Roberto"]
[Result "1-0"]
[WhiteElo "2385"]
[BlackElo "1987"]
[TimeControl "180+2"]
[EndTime "11:00:51 PDT"]
[Termination "Victoria de AGG2020 por abandono"]

1. e4 {[%clk 0:03:01.9]} 1... c6 {[%clk 0:03:00.4]} 2. d4 {[%clk 0:03:02.2]}
2... d5 {[%clk 0:03:01.4]} 3. Nc3 {[%clk 0:03:03.7]} 3... dxe4 {[%clk
0:03:02.1]} 4. Nxe4 {[%clk 0:03:05.6]} 4... Bf5 {[%clk 0:03:03]} 5. Ng3 {[%clk
0:03:07.1]} 5... Bg6 {[%clk 0:03:04.1]} 6. h4 {[%clk 0:03:08.8]} 6... h6 {[%clk
0:03:05.1]} 7. Nf3 {[%clk 0:03:10.7]} 7... Nd7 {[%clk 0:03:06.1]} 8. Bd3 {[%clk
0:03:12.2]} 8... Bxd3 {[%clk 0:03:06.9]} 9. Qxd3 {[%clk 0:03:14.1]} 9... Ngf6
{[%clk 0:03:08.1]} 10. O-O {[%clk 0:03:14.9]} 10... e6 {[%clk 0:03:09]} 11. c4
{[%clk 0:03:12.7]} 11... Bd6 {[%clk 0:03:08.3]} 12. Ne4 {[%clk 0:03:12.9]} 12...
Nxe4 {[%clk 0:03:09.3]} 13. Qxe4 {[%clk 0:03:14.8]} 13... Nf6 {[%clk 0:03:10]}
14. Qe2 {[%clk 0:03:16.2]} 14... O-O {[%clk 0:03:07]} 15. g3 {[%clk 0:03:14.3]}
15... c5 {[%clk 0:03:04.6]} 16. Rd1 {[%clk 0:03:09.2]} 16... cxd4 {[%clk
0:03:04.8]} 17. Nxd4 {[%clk 0:03:09.3]} 17... Qe7 {[%clk 0:03:02.6]} 18. b3
{[%clk 0:03:01.5]} 18... Rad8 {[%clk 0:02:56.2]} 19. Bb2 {[%clk 0:02:57.9]}
19... a6 {[%clk 0:02:51.6]} 20. Rd3 {[%clk 0:02:42.7]} 20... Qc7 {[%clk
0:02:38.7]} 21. Rad1 {[%clk 0:02:35.3]} 21... Bc5 {[%clk 0:02:25.5]} 22. Kg2
{[%clk 0:02:26.7]} 22... Rd7 {[%clk 0:02:16.5]} 23. Nf3 {[%clk 0:02:17.5]} 23...
Rxd3 {[%clk 0:02:07.8]} 24. Rxd3 {[%clk 0:02:17.7]} 24... Ng4 {[%clk 0:02:05.8]}
25. Ne5 {[%clk 0:02:16.4]} 25... Nxf2 {[%clk 0:01:33]} 26. Rf3 {[%clk
0:01:49.8]} 26... Qa5 {[%clk 0:00:58.4]} 27. Nd7 {[%clk 0:01:32.3]} 27... Rd8
{[%clk 0:00:45.2]} 28. Qe5 {[%clk 0:00:36.5]} 28... f6 {[%clk 0:00:36.5]} 29.
Qxc5 {[%clk 0:00:32.1]} 29... Qxc5 {[%clk 0:00:31.7]} 30. Nxc5 {[%clk
0:00:31.9]} 30... Nd1 {[%clk 0:00:31.2]} 31. Rd3 {[%clk 0:00:31.3]} 31... Rc8
{[%clk 0:00:19.8]} 32. Rxd1 {[%clk 0:00:31.6]} 32... Rxc5 {[%clk 0:00:20.9]} 33.
Rd7 {[%clk 0:00:30.1]} 33... b5 {[%clk 0:00:21.4]} 34. Ba3 {[%clk 0:00:31.5]}
34... Re5 {[%clk 0:00:21.5]} 35. c5 {[%clk 0:00:33]} 35... Re2+ {[%clk
0:00:21.9]} 36. Kf3 {[%clk 0:00:34.5]} 36... Rxa2 {[%clk 0:00:23.4]} 37. c6
{[%clk 0:00:35.6]} 37... Rxa3 {[%clk 0:00:24.8]} 38. c7 {[%clk 0:00:36.3]} 38...
Rxb3+ {[%clk 0:00:26.3]} 39. Kg2 {[%clk 0:00:36.3]} 39... Rb2+ {[%clk
0:00:27.4]} 40. Kh3 {[%clk 0:00:36.4]} 1

[Event "Open Nuevo Centro. Jornada 2"]
[Site "Chess.com"]
[Date "2020.06.26"]
[Round "3"]
[White "Montes Molina, Ivan"]
[Black "Martínez Carvajal, Juan Francisco"]
[Result "1-0"]
[WhiteElo "1260"]
[BlackElo "1752"]
[TimeControl "180+2"]
[EndTime "11:00:58 PDT"]
[Termination "Victoria de Ivanbarad por jaque mate"]

1. e4 {[%clk 0:03:01.9]} 1... c5 {[%clk 0:03:00.5]} 2. d4 {[%clk 0:03:02.5]}
2... cxd4 {[%clk 0:02:57.5]} 3. c3 {[%clk 0:03:03.5]} 3... Nf6 {[%clk
0:02:57.6]} 4. e5 {[%clk 0:03:02.4]} 4... Nd5 {[%clk 0:02:56.3]} 5. cxd4 {[%clk
0:03:03.7]} 5... Nc6 {[%clk 0:02:55.3]} 6. Nf3 {[%clk 0:03:02.9]} 6... d6 {[%clk
0:02:54.5]} 7. Bc4 {[%clk 0:03:02.6]} 7... Nb6 {[%clk 0:02:54.9]} 8. Bxf7+
{[%clk 0:02:54.4]} 8... Kxf7 {[%clk 0:02:52.5]} 9. Ng5+ {[%clk 0:02:55.2]} 9...
Kg8 {[%clk 0:02:31.5]} 10. e6 {[%clk 0:02:53.9]} 10... Qe8 {[%clk 0:02:01.4]}
11. Qf3 {[%clk 0:02:47.6]} 11... g6 {[%clk 0:01:41.8]} 12. d5 {[%clk 0:02:45.1]}
12... Ne5 {[%clk 0:01:35.6]} 13. Qe4 {[%clk 0:02:33.6]} 13... Bg7 {[%clk
0:01:21.9]} 14. O-O {[%clk 0:02:32.9]} 14... h6 {[%clk 0:01:18]} 15. f4 {[%clk
0:02:14.7]} 15... hxg5 {[%clk 0:01:08.5]} 16. fxe5 {[%clk 0:02:14.5]} 16... Bxe5
{[%clk 0:01:06.9]} 17. h3 {[%clk 0:01:44.3]} 17... Rh4 {[%clk 0:00:55.9]} 18.
Qd3 {[%clk 0:01:40.5]} 18... Rd4 {[%clk 0:00:49.8]} 19. Qc2 {[%clk 0:01:36.2]}
19... Rc4 {[%clk 0:00:28.1]} 20. Qd3 {[%clk 0:01:28.2]} 20... Rd4 {[%clk
0:00:28.5]} 21. Qc2 {[%clk 0:01:28.5]} 21... Nxd5 {[%clk 0:00:28.7]} 22. Bxg5
{[%clk 0:01:28.3]} 22... Bxe6 {[%clk 0:00:25.3]} 23. Nc3 {[%clk 0:01:26.1]}
23... Nxc3 {[%clk 0:00:25.2]} 24. Qxc3 {[%clk 0:01:26.9]} 24... Rc4 {[%clk
0:00:16.8]} 25. Qd3 {[%clk 0:01:16.3]} 25... Qc6 {[%clk 0:00:16.2]} 26. Qxg6+
{[%clk 0:01:15.3]} 26... Bg7 {[%clk 0:00:14.1]} 27. Bh6 {[%clk 0:01:10.1]} 27...
Qc5+ {[%clk 0:00:12.1]} 28. Kh1 {[%clk 0:01:04.9]} 28... Qe5 {[%clk 0:00:13.3]}
29. Rae1 {[%clk 0:01:00.4]} 29... Qxb2 {[%clk 0:00:12]} 30. Rxe6 {[%clk
0:00:54.5]} 30... Rc2 {[%clk 0:00:12.1]} 31. Rxe7 {[%clk 0:00:21.5]} 31... Rac8
{[%clk 0:00:04.3]} 32. Rxg7+ {[%clk 0:00:21.4]} 32... Qxg7 {[%clk 0:00:02]} 33.
Qxg7# {[%clk 0:00:16.4]} 1

[Event "Open Nuevo Centro. Jornada 2"]
[Site "Chess.com"]
[Date "2020.06.26"]
[Round "3"]
[White "Gimenez Saiz, Jose Raul"]
[Black "Yuste Valenzuela, Alejandro"]
[Result "0-1"]
[WhiteElo "1532"]
[BlackElo "1860"]
[TimeControl "180+2"]
[EndTime "11:01:03 PDT"]
[Termination "Victoria de alejandrito290 por abandono"]

1. d4 {[%clk 0:03:00]} 1... Nf6 {[%clk 0:03:00.3]} 2. e3 {[%clk 0:02:59.7]} 2...
g6 {[%clk 0:02:59.6]} 3. Bd3 {[%clk 0:03:01]} 3... Bg7 {[%clk 0:03:00.9]} 4. Nc3
{[%clk 0:03:01.6]} 4... O-O {[%clk 0:03:01.1]} 5. h4 {[%clk 0:03:01.3]} 5... h5
{[%clk 0:03:01.1]} 6. f3 {[%clk 0:03:01.5]} 6... d6 {[%clk 0:03:01.7]} 7. Nh3
{[%clk 0:02:56.9]} 7... e5 {[%clk 0:02:59.3]} 8. Nf2 {[%clk 0:02:48.8]} 8... Nc6
{[%clk 0:02:56.9]} 9. d5 {[%clk 0:02:48.6]} 9... Ne7 {[%clk 0:02:57]} 10. e4
{[%clk 0:02:48.9]} 10... c6 {[%clk 0:02:50.7]} 11. Bc4 {[%clk 0:02:47.9]} 11...
cxd5 {[%clk 0:02:51]} 12. Nxd5 {[%clk 0:02:48.4]} 12... Nexd5 {[%clk 0:02:51.4]}
13. Bxd5 {[%clk 0:02:48.9]} 13... Nxd5 {[%clk 0:02:52.5]} 14. Qxd5 {[%clk
0:02:49.7]} 14... Be6 {[%clk 0:02:53.1]} 15. Qxb7 {[%clk 0:02:38.3]} 15... Rb8
{[%clk 0:02:52.9]} 16. Qxa7 {[%clk 0:02:36.6]} 16... d5 {[%clk 0:02:39.1]} 17.
Bg5 {[%clk 0:02:35.2]} 17... Qc8 {[%clk 0:02:32.6]} 18. O-O {[%clk 0:01:50.9]}
18... Rxb2 {[%clk 0:02:17.4]} 19. Rfc1 {[%clk 0:01:42.4]} 19... dxe4 {[%clk
0:01:40.9]} 20. Nxe4 {[%clk 0:01:42]} 20... f5 {[%clk 0:01:24]} 21. Nc5 {[%clk
0:01:26.4]} 21... Rb5 {[%clk 0:01:00.3]} 22. Nxe6 {[%clk 0:01:25.5]} 22... Qxe6
{[%clk 0:01:02.2]} 23. Qe7 {[%clk 0:01:23]} 23... Qxe7 {[%clk 0:00:53.6]} 24.
Bxe7 {[%clk 0:01:24.3]} 24... Re8 {[%clk 0:00:55.2]} 25. Bg5 {[%clk 0:01:21.4]}
25... e4 {[%clk 0:00:56.5]} 26. fxe4 {[%clk 0:01:20.1]} 26... Bxa1 {[%clk
0:00:56.5]} 27. Rxa1 {[%clk 0:01:20.3]} 27... fxe4 {[%clk 0:00:53.8]} 28. a4
{[%clk 0:01:20.6]} 28... Ra5 {[%clk 0:00:51.3]} 29. Kf2 {[%clk 0:01:19.5]} 29...
e3+ {[%clk 0:00:46.9]} 30. Bxe3 {[%clk 0:01:19.7]} 30... Rf5+ {[%clk 0:00:47.7]}
31. Ke2 {[%clk 0:01:15]} 31... Rfe5 {[%clk 0:00:48.7]} 32. Ra3 {[%clk
0:01:16.4]} 32... Ra5 {[%clk 0:00:47.4]} 33. Kd3 {[%clk 0:01:15.2]} 33... Kf7
{[%clk 0:00:46.4]} 34. c4 {[%clk 0:01:11.2]} 34... Kf6 {[%clk 0:00:40.9]} 35. c5
{[%clk 0:01:07.4]} 35... Kf5 {[%clk 0:00:36.5]} 36. Kc4 {[%clk 0:01:06.3]} 36...
Raa8 {[%clk 0:00:23]} 37. Bg5 {[%clk 0:00:59.6]} 37... Rab8 {[%clk 0:00:20.4]}
38. a5 {[%clk 0:00:58.2]} 38... Re4+ {[%clk 0:00:20.6]} 39. Kd3 {[%clk
0:00:53.7]} 39... Rg4 {[%clk 0:00:20.8]} 40. a6 {[%clk 0:00:53.4]} 40... Rg3+
{[%clk 0:00:21.9]} 41. Kc2 {[%clk 0:00:53.5]} 41... Rxa3 {[%clk 0:00:22]} 0